Workbook

Sheet Truss
B1: NOTES: | C1: Yellow cells: input; White cells: output | G1: WARNING - THIS WORKSHEET IS NOT LOCKED
C2: Do not skip lines when entering joints or members | G2: Make changes at your own risk
B5: JOINTS | E5: FORCES | G5: DISPLACEMENTS | I5: OUTPUT
C6: x | D6: y | E6: Fx | F6: Fy | G6: BC: δx | H6: BC: δy | I6: dx | J6: dy | K6: Fx | L6: Fy
B7: A | C7: =-(7.5*12) -> -90 | D7: 0 | G7: 0 | H7: 0 | I7: 0 | J7: 0 | K7: -7.275957614e-12 | L7: 7500
B8: B | C8: 0 | D8: 14 | F8: -15000 | I8: 0.4204734219 | J8: -5.504788454
B9: C | C9: 90 | D9: 0 | H9: 0 | I9: 0.8409468439 | J9: 0 | L9: 7500
B10: D
B11: E
B12: F
B13: G
B14: H
B15: I
B16: J
B17: K
B18: L
B19: M
B20: N
B21: O
B22: P
B23: Q
B24: R
B25: S
B26: T
B27: U
B28: V
B29: W
B30: X
B31: Y
B32: Z | N32: 2.2 | O32: Target Factor of Safety | Q32: Black = Pass | S32: (Truss graphing - Brian Neumeyer, Summer 2015)
Q33: Red = Fail, yielding
Q34: Blue = Fail, buckling
B35: MEMBERS | H35: =SUM(H37:H86) -> 34.0434875 | I35: TOTAL WEIGHT | Q35: Orange = Fail both
B36: Joint 1 | C36: Joint 2 | D36: Matl ID | E36: Sect ID | F36: Force | G36: Length | H36: Weight | I36: Stress | J36: FS-Yield | K36: FS-Buckling | M36: MATERIALS
A37: 1 | B37: A | C37: B | D37: 1 | E37: 1 | F37: -48794.1323 | G37: 91.08238029 | H37: 8.561743748 | I37: -141843.4078 | J37: 0.31 | K37: 0.02 E | M37: ID | N37: E | O37: Sy
A38: =A37+1 -> 2 | B38: B | C38: C | D38: 1 | E38: 1 | F38: -48794.1323 | G38: 91.08238029 | H38: 8.561743748 | I38: -141843.4078 | J38: 0.31 | K38: 0.02 E | M38: 1 | N38: 30000000 | O38: 44000
A39: =A38+1 -> 3 | B39: A | C39: C | D39: 1 | E39: 1 | F39: 48214.28571 | G39: 180 | H39: 16.92 | I39: 140157.8073 | J39: 0.31 | M39: 2
A40: 4 | M40: 3
A41: 5 | M41: 4
A42: 6 | M42: 5
A43: 7
A44: 8 | M44: SECTIONS
A45: 9 | M45: ID | N45: Label | O45: Area | P45: Rgyr | Q45: Uwgt
A46: 10 | M46: 1 | N46: 1x1/8 | O46: 0.344 | P46: 0.313 | Q46: =1.128/12 -> 0.094
A47: 11 | M47: 2 | N47: 1x1/4 | O47: 0.589 | P47: 0.28 | Q47: =2.003/12 -> 0.1669166667
A48: 12 | M48: 3 | N48: 1-1/2x1/8 | O48: 0.54 | P48: 0.488 | Q48: =1.769/12 -> 0.1474166667
A49: 13 | M49: 4 | N49: 1-1/2x1/4 | O49: 0.982 | P49: 0.451 | Q49: =3.338/12 -> 0.2781666667
A50: 14 | M50: 5 | N50: 2x1/8 | O50: 0.736 | P50: 0.664 | Q50: =2.67/12 -> 0.2225
A51: 15 | M51: 6 | N51: 2x1/4 | O51: 1.374 | P51: 0.625 | Q51: =4.673/12 -> 0.3894166667
A52: 16 | M52: 7 | N52: 2-1/2x1/8 | O52: 0.933 | P52: 0.841 | Q52: =3.05/12 -> 0.2541666667
A53: 17 | M53: 8 | N53: 2-1/2x1/4 | O53: 1.767 | P53: 0.8 | Q53: =6.008/12 -> 0.5006666667
A54: 18 | M54: 9 | N54: 3x1/4 | O54: 2.16 | P54: 0.976 | Q54: =7.343/12 -> 0.6119166667
A55: 19 | M55: 10 | N55: 3x3/8 | O55: 3.093 | P55: 0.938 | Q55: =10.51/12 -> 0.8758333333
A56: 20 | M56: 11 | N56: 4x3/16 | O56: 2.246 | P56: 1.35 | Q56: =7.654/12 -> 0.6378333333
A57: 21 | M57: 12 | N57: 4x3/8 | O57: 4.271 | P57: 1.289 | Q57: =14.52/12 -> 1.21
A58: 22
A59: 23
A60: 24
A61: 25
A62: 26
A63: 27
A64: 28
A65: 29
A66: 30
A67: 31
A68: 32
A69: 33
A70: 34
A71: 35
A72: 36
A73: 37
A74: 38
A75: 39
A76: 40
A77: 41
A78: 42
A79: 43
A80: 44
A81: 45
A82: 46
A83: 47
A84: 48
A85: 49
A86: 50

Sheet Sheet2

Sheet Sheet3
